fUST/lending_fUST_20240720
["ID","MTS","AMOUNT","RATE_DAILY","PERIOD"]
[332647439,1721404832205,200.0,0.00022658,120]
[332647440,1721405191137,-166.666666,0.00014795,2]
[332647441,1721405191164,-0.00101122,0.000149,2]
[332647442,1721405289417,2000.0,0.00014001,2]
[332647448,1721405404923,207.29623892,0.00014001,2]
[332647449,1721405404979,1792.70376108,0.00014001,2]
[332647512,1721405432079,-150.0,0.00015,2]
[332647513,1721405432089,-196.92607879,0.00015644,2]
[332647514,1721405432099,-175.163621,0.00015743,2]
[332647515,1721405432108,-391.4618106,0.00015746,2]
[332647516,1721405432118,-4999.5538927,0.00016347,2]
[332647517,1721405432130,-1070.54070808,0.00016347,2]
[332647580,1721405438060,-1050.7197,0.00016347,2]
[332647582,1721405438072,-10162.74939063,0.00016347,2]
[332647584,1721405438081,-166.666666,0.00016438,2]
[332647586,1721405438091,-775.9168528,0.0001683,2]
[332647588,1721405438100,-150.0,0.00017,2]
[332647590,1721405438110,-300.0,0.00017018,2]
[332647592,1721405438120,-150.0,0.00018,2]
[332647594,1721405438129,-2137.43178425,0.00018302,2]
[332647596,1721405438138,-1628.0642344,0.00018346,2]
[332647597,1721405438148,-166.666666,0.00018362,2]
[332647599,1721405438158,-206.5463282,0.00018378,2]
[332647601,1721405438167,-151.944206,0.00018418,2]
[332647603,1721405438177,-190.029012,0.00018418,2]
[332647604,1721405438186,-151.944205,0.00018418,2]
[332647605,1721405438196,-980.61422822,0.00018557,2]
[332647606,1721405438206,-3085.40967143,0.00018557,2]
[332647607,1721405438216,-1107.38930569,0.00018587,2]
[332647608,1721405438225,-154.77557542,0.00018679,2]
[332647609,1721405438236,-420.0,0.0001872,2]
[332647610,1721405438246,-1408.0,0.00018743,2]
[332647611,1721405438255,-4179.73747105,0.00018795,2]
[332647612,1721405438264,-580.87229403,0.000188,2]
[332647613,1721405438275,-42308.74594411,0.00018989,2]
[332647614,1721405438284,-344.24,0.00019,2]
[332647615,1721405438294,-150.0,0.00019,2]
[332647616,1721405438304,-151.944205,0.00019032,2]
[332647617,1721405438315,-416.81431274,0.00019058,2]
[332647618,1721405438324,-416.81431272,0.00019061,2]
[332647619,1721405438334,-416.81431272,0.00019064,2]
[332647620,1721405438343,-416.81431272,0.00019067,2]
[332647621,1721405438353,-416.81431272,0.0001907,2]
[332647622,1721405438362,-30000.0,0.00019091,2]
[332647623,1721405438371,-166.66,0.0001914,3]
[332647624,1721405438381,-1655.12664238,0.0001915,5]
[332647625,1721405438393,-2973.82340508,0.0001915,5]
[332647626,1721405438404,-6409.96205683,0.0001915,5]
[332647627,1721405438413,-5748.00496909,0.0001915,2]
[332647628,1721405438425,-2075.65589102,0.0001915,2]
[332647629,1721405438436,-8642.65779371,0.0001915,2]
[332647630,1721405438448,-9628.21162624,0.0001915,2]
[332647863,1721405441439,-616.81039236,0.0001915,2]
[332647870,1721405441493,-8135.40582698,0.0001915,2]
[332647872,1721405441504,-11615.5821665,0.00019158,2]
[332647874,1721405441514,-151.0,0.00019158,2]
[332647876,1721405441524,-211.64890518,0.00019159,2]
[332647878,1721405441533,-456.61044511,0.00019159,2]
[332647880,1721405441543,-243.6154613,0.00019159,2]
[332647882,1721405441552,-500.0,0.00019159,2]
[332647884,1721405441563,-500.0,0.00019159,2]
[332647886,1721405441574,-500.0,0.00019159,2]
[332647888,1721405441585,-550.93898752,0.00019159,2]
[332647890,1721405441594,-500.0,0.00019159,2]
[332647892,1721405441609,-500.0,0.00019159,2]
[332647893,1721405441622,-570.25196738,0.00019159,2]
[332647894,1721405441633,-500.0,0.00019159,2]
[332647895,1721405441646,-500.0,0.00019159,2]
[332647896,1721405441656,-500.0,0.00019159,2]
[332647897,1721405441667,-177.26120716,0.00019159,2]
[332647898,1721405441676,-500.0,0.00019159,2]
[332647899,1721405441687,-500.0,0.00019159,2]
[332647900,1721405441697,-500.0,0.00019159,2]
[332647901,1721405441707,-500.0,0.00019159,2]
[332647902,1721405441718,-170.5308229,0.00019159,2]
[332647903,1721405441728,-600.0,0.00019159,2]
[332647904,1721405441737,-151.0,0.00019159,2]
[332647905,1721405441748,-151.0,0.00019159,2]
[332647906,1721405441757,-225.623671,0.00019159,2]
[332647907,1721405441767,-225.623671,0.00019159,2]
[332647908,1721405441777,-151.0,0.00019159,2]
[332647909,1721405441788,-151.0,0.00019159,2]
[332647910,1721405441797,-29786.88238718,0.0001916,2]
[332647992,1721405443237,-114418.35112552,0.0001916,2]
[332647994,1721405443247,-151.0,0.0001916,2]
[332647996,1721405443258,-345.225632,0.0001916,2]
[332647998,1721405443268,-345.225632,0.0001916,2]
[332648000,1721405443278,-345.225632,0.0001916,2]
[332648002,1721405443287,-345.225632,0.0001916,2]
[332648004,1721405443297,-225.623671,0.0001916,2]
[332648006,1721405443306,-225.623671,0.0001916,2]
[332648009,1721405443316,-175.779574,0.0001916,2]
[332648012,1721405443327,-151.0,0.0001916,2]
[332648014,1721405443337,-151.0,0.0001916,2]
[332648016,1721405443346,-151.0,0.0001916,2]
[332648018,1721405443355,-151.0,0.0001916,2]
[332648020,1721405443365,-151.0,0.0001916,2]
[332648022,1721405443375,-216.957074,0.0001916,2]
[332648024,1721405443384,-151.0,0.0001916,2]
[332648026,1721405443393,-151.0,0.0001916,2]
[332648028,1721405443403,-151.0,0.0001916,2]
[332648030,1721405443413,-151.0,0.00019167,2]
[332648032,1721405443423,-23231.164333,0.00019168,2]
[332648034,1721405443432,-151.0,0.00019168,2]
[332648036,1721405443442,-345.225632,0.00019168,2]
[332648038,1721405443451,-345.225632,0.00019168,2]
[332648040,1721405443460,-225.623671,0.00019168,2]
[332648042,1721405443470,-225.623671,0.00019168,2]
[332648044,1721405443479,-151.0,0.00019168,2]
[332648046,1721405443489,-151.0,0.00019168,2]
[332648048,1721405443498,-151.0,0.00019168,2]
[332648050,1721405443508,-139386.985998,0.00019168,2]
[332648052,1721405443517,-151.0,0.00019177,2]
[332648054,1721405443527,-160.533022,0.00019177,2]
[332648056,1721405443536,-61717.5303878,0.00019178,5]
[332648058,1721405443546,-475.80518497,0.00019178,2]
[332648060,1721405443555,-500.0,0.00019178,2]
[332648062,1721405443564,-256.98708877,0.00019178,2]
[332648064,1721405443574,-500.0,0.00019178,2]
[332648067,1721405443583,-500.0,0.00019178,2]
[332648068,1721405443592,-500.0,0.00019178,2]
[332648070,1721405443602,-935.32,0.00019178,2]
[332648072,1721405443613,-500.0,0.00019178,2]
[332648074,1721405443622,-500.0,0.00019178,2]
[332648076,1721405443631,-563.0327418,0.00019178,2]
[332648079,1721405443641,-500.0,0.00019178,2]
[332648080,1721405443650,-500.0,0.00019178,2]
[332648082,1721405443660,-500.0,0.00019178,2]
[332648085,1721405443670,-500.0,0.00019178,2]
[332648087,1721405443679,-500.0,0.00019178,2]
[332648089,1721405443688,-500.0,0.00019178,2]
[332648091,1721405443701,-500.0,0.00019178,2]
[332648093,1721405443711,-369.71044317,0.00019178,2]
[332648095,1721405443721,-500.0,0.00019178,2]
[332648097,1721405443730,-500.0,0.00019178,2]
[332648099,1721405443740,-500.0,0.00019178,2]
[332648101,1721405443750,-500.0,0.00019178,2]
[332648103,1721405443759,-500.0,0.00019178,2]
[332648105,1721405443769,-500.0,0.00019178,2]
[332648107,1721405443778,-500.0,0.00019178,2]
[332648109,1721405443789,-500.0,0.00019178,2]
[332648111,1721405443798,-500.0,0.00019178,2]
[332648113,1721405443808,-500.0,0.00019178,2]
[332648115,1721405443818,-500.0,0.00019178,2]
[332648117,1721405443827,-500.0,0.00019178,2]
[332648119,1721405443838,-500.0,0.00019178,2]
[332648121,1721405443848,-500.0,0.00019178,2]
[332648123,1721405443860,-500.0,0.00019178,2]
[332648125,1721405443870,-500.0,0.00019178,2]
[332648127,1721405443880,-500.0,0.00019178,2]
[332648129,1721405443891,-500.0,0.00019178,2]
[332648131,1721405443901,-500.0,0.00019178,2]
[332648133,1721405443912,-500.0,0.00019178,2]
[332648136,1721405443923,-500.0,0.00019178,2]
[332648137,1721405443932,-500.0,0.00019178,2]
[332648139,1721405443942,-500.0,0.00019178,2]
[332648141,1721405443952,-500.0,0.00019178,2]
[332648144,1721405443963,-500.0,0.00019178,2]
[332648146,1721405443973,-500.0,0.00019178,2]
[332648148,1721405443982,-500.0,0.00019178,2]
[332648150,1721405443992,-500.0,0.00019178,2]
[332648152,1721405444001,-500.0,0.00019178,2]
[332648154,1721405444011,-500.0,0.00019178,2]
[332648156,1721405444020,-500.0,0.00019178,2]
[332648157,1721405444029,-467.18215292,0.00019178,2]
[332648159,1721405444038,-500.0,0.00019178,2]
[332648161,1721405444050,-500.0,0.00019178,2]
[332648164,1721405444060,-500.0,0.00019178,2]
[332648166,1721405444069,-500.0,0.00019178,2]
[332648167,1721405444078,-592.98411508,0.00019178,2]
[332648169,1721405444087,-500.0,0.00019178,2]
[332648171,1721405444097,-500.0,0.00019178,2]
[332648173,1721405444108,-500.0,0.00019178,2]
[332648175,1721405444118,-500.0,0.00019178,2]
[332648177,1721405444128,-500.0,0.00019178,2]
[332648179,1721405444138,-520.94515737,0.00019178,2]
[332648181,1721405444148,-500.0,0.00019178,2]
[332648183,1721405444157,-500.0,0.00019178,2]
[332648185,1721405444166,-500.0,0.00019178,2]
[332648187,1721405444176,-500.0,0.00019178,2]
[332648189,1721405444185,-285.58892814,0.00019178,2]
[332648191,1721405444195,-500.0,0.00019178,2]
[332648193,1721405444204,-500.0,0.00019178,2]
[332648195,1721405444216,-455.8511856,0.00019178,2]
[332648199,1721405444237,-44.1488144,0.00019178,2]
[332648201,1721405444252,-539.85084873,0.00019178,2]
[332648203,1721405444262,-500.0,0.00019178,2]
[332648205,1721405444271,-500.0,0.00019178,2]
[332648206,1721405444280,-500.0,0.00019178,2]
[332648208,1721405444290,-500.0,0.00019178,2]
[332648210,1721405444299,-500.0,0.00019178,2]
[332648212,1721405444308,-581.26482402,0.00019178,2]
[332648214,1721405444318,-500.0,0.00019178,2]
[332648216,1721405444328,-500.0,0.00019178,2]
[332648218,1721405444338,-543.07693725,0.00019178,2]
[332648220,1721405444348,-542.6573928,0.00019178,2]
[332648222,1721405444359,-500.0,0.00019178,2]
[332648224,1721405444369,-510.09330762,0.00019178,2]
[332648226,1721405444378,-500.0,0.00019178,2]
[332648228,1721405444388,-500.0,0.00019178,2]
[332648230,1721405444397,-500.0,0.00019178,2]
[332648232,1721405444407,-500.0,0.00019178,2]
[332648234,1721405444416,-500.0,0.00019178,2]
[332648236,1721405444426,-344.89137017,0.00019178,2]
[332648238,1721405444435,-500.0,0.00019178,2]
[332648240,1721405444444,-500.0,0.00019178,2]
[332648242,1721405444453,-244.28139275,0.00019178,2]
[332648244,1721405444462,-500.0,0.00019178,2]
[332648246,1721405444472,-259.47834909,0.00019178,2]
[332648247,1721405444482,-500.0,0.00019178,2]
[332648249,1721405444491,-500.0,0.00019178,2]
[332648251,1721405444500,-500.0,0.00019178,2]
[332648253,1721405444509,-500.0,0.00019178,2]
[332648255,1721405444519,-628.99,0.00019178,2]
[332648257,1721405444528,-500.0,0.00019178,2]
[332648259,1721405444538,-500.0,0.00019178,2]
[332648261,1721405444548,-602.79520535,0.00019178,2]
[332648263,1721405444557,-500.0,0.00019178,2]
[332648265,1721405444567,-500.0,0.00019178,2]
[332648267,1721405444577,-500.0,0.00019178,2]
[332648269,1721405444586,-500.0,0.00019178,2]
[332648271,1721405444596,-500.0,0.00019178,2]
[332648273,1721405444606,-500.0,0.00019178,2]
[332648275,1721405444615,-500.0,0.00019178,2]
[332648277,1721405444625,-500.0,0.00019178,2]
[332648279,1721405444634,-500.0,0.00019178,2]
[332648281,1721405444644,-500.0,0.00019178,2]
[332648283,1721405444653,-500.0,0.00019178,2]
[332648285,1721405444663,-500.0,0.00019178,2]
[332648287,1721405444672,-500.0,0.00019178,2]
[332648289,1721405444681,-537.68,0.00019178,2]
[332648291,1721405444691,-500.0,0.00019178,2]
[332648293,1721405444700,-500.0,0.00019178,2]
[332648295,1721405444709,-500.0,0.00019178,2]
[332648297,1721405444718,-500.0,0.00019178,2]
[332648298,1721405444727,-500.0,0.00019178,2]
[332648300,1721405444736,-500.0,0.00019178,2]
[332648302,1721405444746,-500.0,0.00019178,2]
[332648304,1721405444755,-500.0,0.00019178,2]
[332648307,1721405444765,-500.0,0.00019178,2]
[332648309,1721405444774,-500.0,0.00019178,2]
[332648310,1721405444783,-368.35167939,0.00019178,2]
[332648312,1721405444792,-500.0,0.00019178,2]
[332648315,1721405444801,-500.0,0.00019178,2]
[332648317,1721405444810,-500.0,0.00019178,2]
[332648319,1721405444820,-500.0,0.00019178,2]
[332648321,1721405444829,-500.0,0.00019178,2]
[332648322,1721405444839,-500.0,0.00019178,2]
[332648324,1721405444848,-500.0,0.00019178,2]
[332648326,1721405444860,-500.0,0.00019178,2]
[332648328,1721405444869,-500.0,0.00019178,2]
[332648330,1721405444878,-500.0,0.00019178,2]
[332648332,1721405444887,-500.0,0.00019178,2]
[332648357,1721405445113,-374.03665919,0.00019178,2]
[332648359,1721405445123,-500.0,0.00019178,2]
[332648361,1721405445132,-500.0,0.00019178,2]
[332648363,1721405445142,-500.000001,0.00019178,2]
[332648365,1721405445151,-786.15,0.00019178,2]
[332648367,1721405445160,-786.15,0.00019178,2]
[332648369,1721405445170,-786.15,0.00019178,2]
[332648371,1721405445179,-786.15,0.00019178,2]
[332648373,1721405445189,-786.15,0.00019178,2]
[332648375,1721405445198,-786.15,0.00019178,2]
[332648377,1721405445208,-786.15,0.00019178,2]
[332648379,1721405445218,-786.15,0.00019178,2]
[332648380,1721405445228,-786.15,0.00019178,2]
[332648382,1721405445242,-786.15,0.00019178,2]
[332648384,1721405445254,-786.15,0.00019178,2]
[332648386,1721405445263,-500.0,0.00019178,2]
[332648388,1721405445273,-786.15,0.00019178,2]
[332648390,1721405445283,-786.15,0.00019178,2]
[332648393,1721405445292,-786.15,0.00019178,2]
[332648395,1721405445301,-786.15,0.00019178,2]
[332648397,1721405445311,-786.15,0.00019178,2]
[332648399,1721405445322,-786.15,0.00019178,2]
[332648401,1721405445333,-786.15,0.00019178,2]
[332648403,1721405445343,-786.15,0.00019178,2]
[332648405,1721405445353,-786.15,0.00019178,2]
[332648407,1721405445364,-786.15,0.00019178,2]
[332648409,1721405445373,-786.15,0.00019178,2]
[332648411,1721405445383,-786.15,0.00019178,2]
[332648413,1721405445392,-786.18436512,0.00019178,2]
[332648415,1721405445401,-500.0,0.00019178,2]
[332648417,1721405445412,-500.0,0.00019178,2]
[332648419,1721405445421,-500.0,0.00019178,2]
[332648421,1721405445431,-500.0,0.00019178,2]
[332648423,1721405445441,-500.0,0.00019178,2]
[332648425,1721405445451,-500.0,0.00019178,2]
[332648427,1721405445460,-500.0,0.00019178,2]
[332648429,1721405445470,-255.32617118,0.00019178,2]
[332648431,1721405445479,-617.13,0.00019178,2]
[332648433,1721405445489,-500.0,0.00019178,2]
[332648435,1721405445499,-500.0,0.00019178,2]
[332648437,1721405445508,-500.0,0.00019178,2]
[332648439,1721405445518,-500.0,0.00019178,2]
[332648441,1721405445527,-500.0,0.00019178,2]
[332648443,1721405445537,-500.0,0.00019178,2]
[332648445,1721405445547,-500.0,0.00019178,2]
[332648447,1721405445556,-500.0,0.00019178,2]
[332648449,1721405445565,-500.0,0.00019178,2]
[332648451,1721405445574,-500.0,0.00019178,2]
[332648453,1721405445584,-500.0,0.00019178,2]
[332648455,1721405445596,-500.0,0.00019178,2]
[332648457,1721405445606,-500.0,0.00019178,2]
[332648459,1721405445615,-500.0,0.00019178,2]
[332648461,1721405445624,-500.0,0.00019178,2]
[332648463,1721405445633,-500.0,0.00019178,2]
[332648465,1721405445643,-500.0,0.00019178,2]
[332648467,1721405445653,-220.03,0.00019178,2]
[332648469,1721405445663,-500.0,0.00019178,2]
[332648471,1721405445674,-500.0,0.00019178,2]
[332648473,1721405445683,-500.0,0.00019178,2]
[332648475,1721405445692,-500.0,0.00019178,2]
[332648477,1721405445701,-500.0,0.00019178,2]
[332648479,1721405445710,-396.5647697,0.00019178,2]
[332648481,1721405445719,-500.0,0.00019178,2]
[332648483,1721405445728,-500.0,0.00019178,2]
[332648485,1721405445739,-500.0,0.00019178,2]
[332648487,1721405445748,-500.0,0.00019178,2]
[332648490,1721405445758,-586.47,0.00019178,2]
[332648492,1721405445767,-500.0,0.00019178,2]
[332648494,1721405445777,-500.0,0.00019178,2]
[332648496,1721405445786,-500.0,0.00019178,2]
[332648498,1721405445796,-500.0,0.00019178,2]
[332648500,1721405445806,-500.0,0.00019178,2]
[332648502,1721405445815,-500.0,0.00019178,2]
[332648504,1721405445825,-500.0,0.00019178,2]
[332648506,1721405445834,-500.0,0.00019178,2]
[332648508,1721405445844,-500.0,0.00019178,2]
[332648509,1721405445853,-500.0,0.00019178,2]
[332648511,1721405445863,-500.0,0.00019178,2]
[332648514,1721405445874,-500.0,0.00019178,2]
[332648516,1721405445884,-500.0,0.00019178,2]
[332648517,1721405445893,-500.0,0.00019178,2]
[332648519,1721405445902,-500.0,0.00019178,2]
[332648521,1721405445912,-500.0,0.00019178,2]
[332648523,1721405445921,-275.66,0.00019178,2]
[332648525,1721405445930,-500.0,0.00019178,2]
[332648527,1721405445940,-500.0,0.00019178,2]
[332648529,1721405445949,-500.0,0.00019178,2]
[332648531,1721405445959,-500.0,0.00019178,2]
[332648533,1721405445969,-282.68065747,0.00019178,2]
[332648535,1721405445978,-397.25568511,0.00019178,2]
[332648537,1721405445987,-468.96113482,0.00019178,2]
[332648539,1721405445996,-500.0,0.00019178,2]
[332648541,1721405446006,-500.0,0.00019178,2]
[332648543,1721405446015,-500.0,0.00019178,2]
[332648544,1721405446024,-500.0,0.00019178,2]
[332648546,1721405446033,-500.0,0.00019178,2]
[332648548,1721405446044,-500.0,0.00019178,2]
[332648550,1721405446054,-504.84628969,0.00019178,2]
[332648552,1721405446065,-500.0,0.00019178,2]
[332648554,1721405446075,-500.0,0.00019178,2]
[332648556,1721405446084,-500.0,0.00019178,2]
[332648558,1721405446094,-500.0,0.00019178,2]
[332648560,1721405446104,-300.19870153,0.00019178,2]
[332648562,1721405446114,-500.0,0.00019178,2]
[332648564,1721405446124,-500.0,0.00019178,2]
[332648566,1721405446135,-500.0,0.00019178,2]
[332648568,1721405446145,-500.0,0.00019178,2]
[332648570,1721405446155,-543.48954009,0.00019178,2]
[332648572,1721405446165,-500.0,0.00019178,2]
[332648574,1721405446175,-500.0,0.00019178,2]
[332648576,1721405446185,-500.0,0.00019178,2]
[332648578,1721405446194,-249.20787976,0.00019178,2]
[332648580,1721405446203,-500.0,0.00019178,2]
[332648582,1721405446214,-500.0,0.00019178,2]
[332648584,1721405446225,-500.0,0.00019178,2]
[332648586,1721405446238,-500.0,0.00019178,2]
[332648588,1721405446254,-465.83531025,0.00019178,2]
[332648590,1721405446265,-500.0,0.00019178,2]
[332648592,1721405446275,-500.0,0.00019178,2]
[332648594,1721405446290,-500.0,0.00019178,2]
[332648596,1721405446299,-500.0,0.00019178,2]
[332648598,1721405446309,-500.0,0.00019178,2]
[332648600,1721405446319,-500.0,0.00019178,2]
[332648602,1721405446332,-175.64207054,0.00019178,2]
[332648604,1721405446342,-500.0,0.00019178,2]
[332648606,1721405446352,-408.0119199,0.00019178,2]
[332648608,1721405446366,-500.0,0.00019178,2]
[332648610,1721405446376,-500.0,0.00019178,2]
[332648612,1721405446386,-500.0,0.00019178,2]
[332648614,1721405446396,-500.0,0.00019178,2]
[332648616,1721405446407,-500.0,0.00019178,2]
[332648618,1721405446416,-500.0,0.00019178,2]
[332648620,1721405446425,-500.0,0.00019178,2]
[332648622,1721405446435,-500.0,0.00019178,2]
[332648624,1721405446445,-500.0,0.00019178,2]
[332648626,1721405446454,-500.0,0.00019178,2]
[332648628,1721405446464,-500.0,0.00019178,2]
[332648630,1721405446473,-500.0,0.00019178,2]
[332648632,1721405446483,-616.87,0.00019178,2]
[332648635,1721405446494,-500.0,0.00019178,2]
[332648638,1721405446503,-500.0,0.00019178,2]
[332648641,1721405446514,-638.78289021,0.00019178,2]
[332648644,1721405446523,-306.5611675,0.00019178,2]
[332648648,1721405446533,-479.61320937,0.00019178,2]
[332648651,1721405446542,-500.0,0.00019178,2]
[332648653,1721405446553,-500.0,0.00019178,2]
[332648657,1721405446562,-500.0,0.00019178,2]
[332648660,1721405446573,-500.0,0.00019178,2]
[332648663,1721405446583,-500.0,0.00019178,2]
[332648665,1721405446594,-500.0,0.00019178,2]
[332648667,1721405446603,-500.0,0.00019178,2]
[332648669,1721405446617,-500.0,0.00019178,2]
[332648671,1721405446627,-360.263448,0.00019178,2]
[332648673,1721405446637,-500.0,0.00019178,2]
[332648675,1721405446647,-500.0,0.00019178,2]
[332648677,1721405446657,-500.0,0.00019178,2]
[332648679,1721405446667,-500.0,0.00019178,2]
[332648681,1721405446676,-500.0,0.00019178,2]
[332648683,1721405446687,-319.07958488,0.00019178,2]
[332648685,1721405446697,-500.0,0.00019178,2]
[332648687,1721405446707,-8325.6,0.00019178,2]
[332648689,1721405446717,-500.0,0.00019178,2]
[332648691,1721405446728,-432.13251381,0.00019178,2]
[332648693,1721405446738,-500.0,0.00019178,2]
[332648695,1721405446747,-529.06699545,0.00019178,2]
[332648697,1721405446758,-500.0,0.00019178,2]
[332648699,1721405446768,-501.62817362,0.00019178,2]
[332648701,1721405446778,-500.0,0.00019178,2]
[332648703,1721405446789,-500.0,0.00019178,2]
[332648705,1721405446799,-500.0,0.00019178,2]
[332648707,1721405446809,-500.0,0.00019178,2]
[332648709,1721405446819,-500.0,0.00019178,2]
[332648711,1721405446828,-500.0,0.00019178,2]
[332648713,1721405446838,-500.0,0.00019178,2]
[332648715,1721405446848,-500.0,0.00019178,2]
[332648717,1721405446860,-500.0,0.00019178,2]
[332648719,1721405446870,-500.0,0.00019178,2]
[332648721,1721405446879,-500.0,0.00019178,2]
[332648723,1721405446889,-435.31866524,0.00019178,2]
[332648725,1721405446902,-500.0,0.00019178,2]
[332648727,1721405446911,-500.0,0.00019178,2]
[332648729,1721405446921,-433.8228875,0.00019178,2]
[332648731,1721405446931,-473.00195591,0.00019178,2]
[332648733,1721405446941,-500.0,0.00019178,2]
[332648735,1721405446951,-500.0,0.00019178,2]
[332648737,1721405446962,-500.0,0.00019178,2]
[332648739,1721405446971,-500.0,0.00019178,2]
[332648741,1721405446981,-286.58001541,0.00019178,2]
[332648743,1721405446991,-410.65868871,0.00019178,2]
[332648745,1721405447000,-1256.43,0.00019178,2]
[332648748,1721405447010,-500.0,0.00019178,2]
[332648750,1721405447020,-500.0,0.00019178,2]
[332648752,1721405447030,-500.0,0.00019178,2]
[332648753,1721405447040,-501.0,0.00019178,2]
[332648756,1721405447050,-500.0,0.00019178,2]
[332648758,1721405447061,-500.0,0.00019178,2]
[332648760,1721405447071,-500.0,0.00019178,2]
[332648762,1721405447080,-500.0,0.00019178,2]
[332648764,1721405447091,-500.0,0.00019178,2]
[332648766,1721405447100,-500.0,0.00019178,2]
[332648768,1721405447112,-500.0,0.00019178,2]
[332648770,1721405447123,-500.0,0.00019178,2]
[332648772,1721405447134,-500.0,0.00019178,2]
[332648774,1721405447145,-500.0,0.00019178,2]
[332648776,1721405447155,-500.0,0.00019178,2]
[332648778,1721405447165,-612.0,0.00019178,2]
[332648780,1721405447175,-500.0,0.00019178,2]
[332648782,1721405447187,-500.0,0.00019178,2]
[332648784,1721405447197,-500.0,0.00019178,2]
[332648787,1721405447207,-500.0,0.00019178,2]
[332648789,1721405447221,-500.0,0.00019178,2]
[332648791,1721405447231,-500.0,0.00019178,2]
[332648793,1721405447241,-500.0,0.00019178,2]
[332648794,1721405447254,-500.0,0.00019178,2]
[332648796,1721405447264,-500.0,0.00019178,2]
[332648798,1721405447274,-305.64838923,0.00019178,2]
[332648800,1721405447285,-500.0,0.00019178,2]
[332648803,1721405447295,-500.0,0.00019178,2]
[332648805,1721405447305,-500.0,0.00019178,2]
[332648807,1721405447314,-500.0,0.00019178,2]
[332648809,1721405447325,-511.22,0.00019178,2]
[332648811,1721405447334,-500.0,0.00019178,2]
[332648813,1721405447344,-500.0,0.00019178,2]
[332648815,1721405447354,-500.0,0.00019178,2]
[332648817,1721405447367,-500.0,0.00019178,2]
[332648818,1721405447376,-502.24351964,0.00019178,2]
[332648820,1721405447386,-500.0,0.00019178,2]
[332648822,1721405447396,-500.0,0.00019178,2]
[332648824,1721405447406,-430.47100395,0.00019178,2]
[332648826,1721405447415,-500.0,0.00019178,2]
[332648828,1721405447424,-503.3452087,0.00019178,2]
[332648830,1721405447435,-500.0,0.00019178,2]
[332648832,1721405447445,-500.0,0.00019178,2]
[332648834,1721405447454,-500.0,0.00019178,2]
[332648836,1721405447464,-500.0,0.00019178,2]
[332648837,1721405447474,-500.0,0.00019178,2]
[332648839,1721405447483,-502.96456176,0.00019178,2]
[332648841,1721405447492,-518.81883029,0.00019178,2]
[332648843,1721405447502,-500.0,0.00019178,2]
[332648845,1721405447511,-500.0,0.00019178,2]
[332648847,1721405447521,-500.0,0.00019178,2]
[332648849,1721405447530,-500.0,0.00019178,2]
[332648851,1721405447540,-500.0,0.00019178,2]
[332648853,1721405447550,-500.0,0.00019178,2]
[332648854,1721405447560,-500.0,0.00019178,2]
[332648856,1721405447570,-500.0,0.00019178,2]
[332648858,1721405447580,-500.0,0.00019178,2]